[Event "Titled Tuesday Blitz May 2 Late 2023"]
[White "Vakhlamov, Igor L."]
[Black "Mustafayev, Farid"]
[WhiteFideId "24126748"]
[BlackFideId "13408771"]
[WhiteElo "2400"]
[BlackElo "2237"]
[Result "0-1"]
[Round "02"]
[TimeControl "180+2"]
[Date "2023.05.02"]
[WhiteClock "0:00:01"]
[BlackClock "0:00:08"]

1. e4 {[%clk 0:02:59]}  c5 {[%clk 0:02:59]} 2. Nf3 {[%clk 0:03:00]}  a6 {[%clk 0:02:59]} 3. Nc3 {[%clk 0:03:00]}  b5 {[%clk 0:02:57]} 4. g3 {[%clk 0:02:57]}  Bb7 {[%clk 0:02:57]} 5. d3 {[%clk 0:02:58]}  e6 {[%clk 0:02:57]} 6. Bg2 {[%clk 0:02:58]}  d6 {[%clk 0:02:57]} 7. O-O {[%clk 0:02:59]}  Nd7 {[%clk 0:02:58]} 8. Re1 {[%clk 0:02:57]}  Ngf6 {[%clk 0:02:57]} 9. e5 {[%clk 0:02:53]}  dxe5 {[%clk 0:02:57]} 10. Nxe5 {[%clk 0:02:53]}  Bxg2 {[%clk 0:02:55]} 11. Kxg2 {[%clk 0:02:54]}  Nxe5 {[%clk 0:02:54]} 12. Rxe5 {[%clk 0:02:55]}  Be7 {[%clk 0:02:52]} 13. Qf3 {[%clk 0:02:54]}  O-O {[%clk 0:02:50]} 14. Bf4 {[%clk 0:02:53]}  Qd4 {[%clk 0:02:43]} 15. Re2 {[%clk 0:02:44]}  Qd7 {[%clk 0:02:26]} 16. Rae1 {[%clk 0:02:37]}  Rac8 {[%clk 0:02:25]} 17. Be5 {[%clk 0:02:25]}  Rfd8 {[%clk 0:02:23]} 18. b3 {[%clk 0:02:03]}  Qc6 {[%clk 0:02:13]} 19. Ne4 {[%clk 0:01:57]}  Nxe4 {[%clk 0:02:12]} 20. dxe4 {[%clk 0:01:58]}  f6 {[%clk 0:02:09]} 21. Bf4 {[%clk 0:01:54]}  e5 {[%clk 0:02:08]} 22. Be3 {[%clk 0:01:54]}  c4 {[%clk 0:02:08]} 23. h4 {[%clk 0:01:54]}  Bb4 {[%clk 0:01:56]} 24. Rh1 {[%clk 0:01:49]}  cxb3 {[%clk 0:01:55]} 25. cxb3 {[%clk 0:01:50]}  Rd3 {[%clk 0:01:54]} 26. h5 {[%clk 0:01:49]}  h6 {[%clk 0:01:53]} 27. Qg4 {[%clk 0:01:40]}  Qd7 {[%clk 0:01:52]} 28. Qg6 {[%clk 0:01:34]}  Qf7 {[%clk 0:01:51]} 29. Qg4 {[%clk 0:01:33]}  Rc6 {[%clk 0:01:39]} 30. Bxh6 {[%clk 0:01:29]}  f5 {[%clk 0:01:38]} 31. exf5 {[%clk 0:01:24]}  Qd5+ {[%clk 0:01:38]} 32. Kh2 {[%clk 0:00:59]}  Rxh6 {[%clk 0:01:37]} 33. f6 {[%clk 0:00:59]}  Bf8 {[%clk 0:01:26]} 34. fxg7 {[%clk 0:00:58]}  Bxg7 {[%clk 0:01:27]} 35. Rc1 {[%clk 0:00:58]}  e4 {[%clk 0:01:06]} 36. Rc8+ {[%clk 0:00:48]}  Kh7 {[%clk 0:01:06]} 37. Qxe4+ {[%clk 0:00:33]}  Qxe4 {[%clk 0:01:05]} 38. Rxe4 {[%clk 0:00:34]}  Rxh5+ {[%clk 0:01:02]} 39. Kg2 {[%clk 0:00:34]}  Rd2 {[%clk 0:01:02]} 40. Rc7 {[%clk 0:00:31]}  Rg5 {[%clk 0:00:54]} 41. a4 {[%clk 0:00:30]}  Kg6 {[%clk 0:00:47]} 42. Re6+ {[%clk 0:00:30]}  Bf6 {[%clk 0:00:46]} 43. Rxa6 {[%clk 0:00:21]}  Rf5 {[%clk 0:00:41]} 44. axb5 {[%clk 0:00:20]}  Rdxf2+ {[%clk 0:00:25]} 45. Kh3 {[%clk 0:00:16]}  Rh5+ {[%clk 0:00:25]} 46. Kg4 {[%clk 0:00:16]}  Rg5+ {[%clk 0:00:26]} 47. Kh3 {[%clk 0:00:16]}  Rf3 {[%clk 0:00:25]} 48. Rcc6 {[%clk 0:00:12]}  Rfxg3+ {[%clk 0:00:21]} 49. Kh2 {[%clk 0:00:13]}  Rg2+ {[%clk 0:00:22]} 50. Kh1 {[%clk 0:00:12]}  Rg1+ {[%clk 0:00:21]} 51. Kh2 {[%clk 0:00:12]}  Rf1 {[%clk 0:00:21]} 52. b6 {[%clk 0:00:06]}  Kh5 {[%clk 0:00:08]} 53. Rxf6 {[%clk 0:00:04]}  Rxf6 {[%clk 0:00:08]} 54. b7 {[%clk 0:00:05]}  Rf2+ {[%clk 0:00:08]} 55. Kh3 {[%clk 0:00:05]}  Rf3+ {[%clk 0:00:09]} 56. Kh2 {[%clk 0:00:05]}  Rxb3 {[%clk 0:00:09]} 57. Ra7 {[%clk 0:00:04]}  Rc5 {[%clk 0:00:09]} 58. Ra3 {[%clk 0:00:01]}  Rc2+ {[%clk 0:00:07]} 59. Kg1 {[%clk 0:00:01]}  Rb1# {[%clk 0:00:08]} 0-1


[Site "https://www.chess.com"]

[Event "Titled Tuesday Blitz May 2 Late 2023"]
[White "Krzyzanowski, Marcin"]
[Black "Adan Bermudez, Sergio"]
[WhiteFideId "1132199"]
[BlackFideId "2292726"]
[WhiteElo "2471"]
[BlackElo "2292"]
[Result "1-0"]
[Round "02"]
[TimeControl "180+2"]
[Date "2023.05.02"]
[WhiteClock "0:02:36"]
[BlackClock "0:02:08"]

1. e4 {[%clk 0:03:00]}  c5 {[%clk 0:03:00]} 2. Nf3 {[%clk 0:02:59]}  Nc6 {[%clk 0:03:00]} 3. d4 {[%clk 0:02:59]}  cxd4 {[%clk 0:03:01]} 4. Nxd4 {[%clk 0:03:00]}  e5 {[%clk 0:03:01]} 5. Nb5 {[%clk 0:02:59]}  a6 {[%clk 0:03:01]} 6. Nd6+ {[%clk 0:02:59]}  Bxd6 {[%clk 0:03:01]} 7. Qxd6 {[%clk 0:03:00]}  Qe7 {[%clk 0:03:02]} 8. Qd2 {[%clk 0:03:00]}  Nf6 {[%clk 0:03:01]} 9. Nc3 {[%clk 0:03:00]}  d6 {[%clk 0:03:01]} 10. Nd5 {[%clk 0:02:57]}  Nxd5 {[%clk 0:02:59]} 11. exd5 {[%clk 0:02:58]}  Nb8 {[%clk 0:02:52]} 12. Be2 {[%clk 0:02:57]}  O-O {[%clk 0:02:51]} 13. O-O {[%clk 0:02:58]}  Nd7 {[%clk 0:02:48]} 14. c4 {[%clk 0:02:58]}  a5 {[%clk 0:02:47]} 15. b3 {[%clk 0:02:57]}  Nc5 {[%clk 0:02:46]} 16. Bb2 {[%clk 0:02:53]}  f5 {[%clk 0:02:44]} 17. f4 {[%clk 0:02:53]}  Ne4 {[%clk 0:02:35]} 18. Qe3 {[%clk 0:02:52]}  exf4 {[%clk 0:02:34]} 19. Rxf4 {[%clk 0:02:53]}  g5 {[%clk 0:02:34]} 20. Rxe4 {[%clk 0:02:46]}  fxe4 {[%clk 0:02:34]} 21. Qd4 {[%clk 0:02:46]}  Qe5 {[%clk 0:02:26]} 22. Qxe5 {[%clk 0:02:45]}  dxe5 {[%clk 0:02:27]} 23. Bxe5 {[%clk 0:02:46]}  Bf5 {[%clk 0:02:23]} 24. c5 {[%clk 0:02:44]}  Rfe8 {[%clk 0:02:17]} 25. Bd4 {[%clk 0:02:42]}  Rad8 {[%clk 0:02:15]} 26. d6 {[%clk 0:02:42]}  b6 {[%clk 0:02:12]} 27. Bf6 {[%clk 0:02:41]}  bxc5 {[%clk 0:02:11]} 28. Bxd8 {[%clk 0:02:35]}  Rxd8 {[%clk 0:02:12]} 29. Rd1 {[%clk 0:02:35]}  Kf7 {[%clk 0:02:10]} 30. Bc4+ {[%clk 0:02:35]}  Be6 {[%clk 0:02:10]} 31. Rf1+ {[%clk 0:02:35]}  Kg6 {[%clk 0:02:08]} 32. Bxe6 {[%clk 0:02:34]}  Rxd6 {[%clk 0:02:09]} 33. Bf5+ {[%clk 0:02:35]}  Kg7 {[%clk 0:02:08]} 34. Bxe4 {[%clk 0:02:36]} 1-0


[Site "https://www.chess.com"]

[Event "Titled Tuesday Blitz May 2 Late 2023"]
[White "Klukin, Kirill"]
[Black "Stork, Oliver"]
[WhiteFideId "24199273"]
[BlackFideId "12955728"]
[WhiteElo "2344"]
[BlackElo "2239"]
[Result "1-0"]
[Round "02"]
[TimeControl "180+2"]
[Date "2023.05.02"]
[WhiteClock "0:00:21"]
[BlackClock "0:00:20"]

1. f4 {[%clk 0:03:00]}  d5 {[%clk 0:02:57]} 2. Nf3 {[%clk 0:02:57]}  c5 {[%clk 0:02:56]} 3. g3 {[%clk 0:02:58]}  Nc6 {[%clk 0:02:56]} 4. Bg2 {[%clk 0:02:59]}  Nf6 {[%clk 0:02:56]} 5. O-O {[%clk 0:02:59]}  e6 {[%clk 0:02:51]} 6. d3 {[%clk 0:03:00]}  Be7 {[%clk 0:02:49]} 7. Nc3 {[%clk 0:03:00]}  b6 {[%clk 0:02:31]} 8. e4 {[%clk 0:03:00]}  Bb7 {[%clk 0:02:31]} 9. Bd2 {[%clk 0:02:39]}  Qc7 {[%clk 0:02:24]} 10. Qe1 {[%clk 0:02:34]}  a6 {[%clk 0:02:23]} 11. a3 {[%clk 0:02:32]}  h5 {[%clk 0:02:05]} 12. f5 {[%clk 0:02:17]}  d4 {[%clk 0:02:02]} 13. fxe6 {[%clk 0:01:56]}  fxe6 {[%clk 0:01:44]} 14. Ne2 {[%clk 0:01:55]}  e5 {[%clk 0:01:44]} 15. Ng5 {[%clk 0:01:54]}  Bc8 {[%clk 0:01:40]} 16. c3 {[%clk 0:01:52]}  Bd7 {[%clk 0:01:35]} 17. cxd4 {[%clk 0:01:52]}  cxd4 {[%clk 0:01:32]} 18. Rc1 {[%clk 0:01:52]}  O-O-O {[%clk 0:01:31]} 19. Nf7 {[%clk 0:01:43]}  Rdf8 {[%clk 0:01:30]} 20. Nxh8 {[%clk 0:01:41]}  Rxh8 {[%clk 0:01:31]} 21. Bg5 {[%clk 0:01:34]}  Kb7 {[%clk 0:01:30]} 22. Nxd4 {[%clk 0:00:55]}  Bc5 {[%clk 0:01:15]} 23. Rxc5 {[%clk 0:00:41]}  bxc5 {[%clk 0:01:16]} 24. Nb3 {[%clk 0:00:40]}  Nd4 {[%clk 0:01:13]} 25. Nxd4 {[%clk 0:00:36]}  cxd4 {[%clk 0:01:14]} 26. Bxf6 {[%clk 0:00:36]}  gxf6 {[%clk 0:01:12]} 27. Rxf6 {[%clk 0:00:37]}  h4 {[%clk 0:00:54]} 28. Qb4+ {[%clk 0:00:37]}  Ka7 {[%clk 0:00:53]} 29. Qd6 {[%clk 0:00:30]}  Qc1+ {[%clk 0:00:40]} 30. Rf1 {[%clk 0:00:25]}  Qe3+ {[%clk 0:00:40]} 31. Kh1 {[%clk 0:00:24]}  Bb5 {[%clk 0:00:22]} 32. Rf7+ {[%clk 0:00:20]}  Ka8 {[%clk 0:00:20]} 33. Qd5+ {[%clk 0:00:20]}  Kb8 {[%clk 0:00:20]} 34. Qb7# {[%clk 0:00:21]} 1-0


[Site "https://www.chess.com"]

[Event "Titled Tuesday Blitz May 2 Late 2023"]
[White "Klimkowski, Jan"]
[Black "Maurizzi, Marc`Andria"]
[WhiteFideId "21856222"]
[BlackFideId "36083534"]
[WhiteElo "2331"]
[BlackElo "2421"]
[Result "1-0"]
[Round "02"]
[TimeControl "180+2"]
[Date "2023.05.02"]
[WhiteClock "0:00:50"]
[BlackClock "0:01:18"]

1. e4 {[%clk 0:03:00]}  c5 {[%clk 0:02:59]} 2. Nf3 {[%clk 0:02:56]}  Nc6 {[%clk 0:02:56]} 3. Bb5 {[%clk 0:02:56]}  e6 {[%clk 0:02:55]} 4. O-O {[%clk 0:02:56]}  Nge7 {[%clk 0:02:54]} 5. Re1 {[%clk 0:02:55]}  a6 {[%clk 0:02:53]} 6. Bf1 {[%clk 0:02:56]}  Nd4 {[%clk 0:02:54]} 7. Nxd4 {[%clk 0:02:51]}  cxd4 {[%clk 0:02:54]} 8. c3 {[%clk 0:02:52]}  Nc6 {[%clk 0:02:54]} 9. d3 {[%clk 0:02:49]}  Bc5 {[%clk 0:02:49]} 10. Qg4 {[%clk 0:02:47]}  O-O {[%clk 0:02:48]} 11. Qg3 {[%clk 0:02:35]}  d6 {[%clk 0:02:47]} 12. Nd2 {[%clk 0:02:34]}  e5 {[%clk 0:02:46]} 13. Nb3 {[%clk 0:02:32]}  Ba7 {[%clk 0:02:45]} 14. Bg5 {[%clk 0:02:32]}  f6 {[%clk 0:02:43]} 15. Bd2 {[%clk 0:02:30]}  Be6 {[%clk 0:02:42]} 16. Be2 {[%clk 0:02:31]}  a5 {[%clk 0:02:41]} 17. Bg4 {[%clk 0:02:30]}  Bf7 {[%clk 0:02:35]} 18. Bf5 {[%clk 0:02:23]}  a4 {[%clk 0:02:28]} 19. Bh6 {[%clk 0:02:13]}  g6 {[%clk 0:02:26]} 20. Nd2 {[%clk 0:02:08]}  a3 {[%clk 0:02:25]} 21. c4 {[%clk 0:01:56]}  axb2 {[%clk 0:02:21]} 22. Rab1 {[%clk 0:01:57]}  Re8 {[%clk 0:02:17]} 23. Rxb2 {[%clk 0:01:56]}  Re7 {[%clk 0:02:11]} 24. Reb1 {[%clk 0:01:54]}  Bc5 {[%clk 0:02:07]} 25. Bh3 {[%clk 0:01:52]}  b6 {[%clk 0:01:59]} 26. f4 {[%clk 0:01:46]}  Kh8 {[%clk 0:01:55]} 27. Nb3 {[%clk 0:01:43]}  Rea7 {[%clk 0:01:41]} 28. Qf2 {[%clk 0:01:34]}  Nb4 {[%clk 0:01:39]} 29. Qf3 {[%clk 0:01:24]}  Rxa2 {[%clk 0:01:27]} 30. Rxa2 {[%clk 0:01:24]}  Rxa2 {[%clk 0:01:27]} 31. fxe5 {[%clk 0:01:22]}  dxe5 {[%clk 0:01:24]} 32. Rf1 {[%clk 0:01:22]}  Be7 {[%clk 0:01:23]} 33. Nc1 {[%clk 0:00:58]}  Nc2 {[%clk 0:01:19]} 34. Nxa2 {[%clk 0:00:55]}  Qa8 {[%clk 0:01:18]} 35. Bg5 {[%clk 0:00:50]} 1-0


[Site "https://www.chess.com"]

[Event "Titled Tuesday Blitz May 2 Late 2023"]
[White "Graif, William"]
[Black "Samsonkin, Artiom"]
[WhiteFideId "2609835"]
[BlackFideId "13503111"]
[WhiteElo "2205"]
[BlackElo "2524"]
[Result "0-1"]
[Round "02"]
[TimeControl "180+2"]
[Date "2023.05.02"]
[WhiteClock "0:00:18"]
[BlackClock "0:00:48"]

1. e4 {[%clk 0:02:40]}  e6 {[%clk 0:02:57]} 2. d4 {[%clk 0:02:38]}  d5 {[%clk 0:02:58]} 3. Be3 {[%clk 0:02:37]}  dxe4 {[%clk 0:02:50]} 4. f3 {[%clk 0:02:36]}  Nf6 {[%clk 0:02:50]} 5. Nd2 {[%clk 0:02:35]}  Nd5 {[%clk 0:02:42]} 6. Qe2 {[%clk 0:02:23]}  c5 {[%clk 0:02:34]} 7. dxc5 {[%clk 0:02:14]}  Nxe3 {[%clk 0:02:33]} 8. Qxe3 {[%clk 0:02:14]}  Qa5 {[%clk 0:02:29]} 9. Qxe4 {[%clk 0:02:00]}  Bxc5 {[%clk 0:02:26]} 10. Bd3 {[%clk 0:01:51]}  Nd7 {[%clk 0:02:21]} 11. a3 {[%clk 0:01:48]}  Nf6 {[%clk 0:02:18]} 12. Qh4 {[%clk 0:01:46]}  Be7 {[%clk 0:02:11]} 13. O-O-O {[%clk 0:01:44]}  Nd5 {[%clk 0:01:57]} 14. Qe4 {[%clk 0:01:39]}  Nf6 {[%clk 0:01:37]} 15. Qh4 {[%clk 0:01:35]}  Qc7 {[%clk 0:01:36]} 16. Nh3 {[%clk 0:01:26]}  Bd7 {[%clk 0:01:37]} 17. Rhe1 {[%clk 0:01:17]}  O-O-O {[%clk 0:01:34]} 18. Kb1 {[%clk 0:01:17]}  Kb8 {[%clk 0:01:35]} 19. Qg3 {[%clk 0:01:13]}  Qxg3 {[%clk 0:01:15]} 20. hxg3 {[%clk 0:01:14]}  h6 {[%clk 0:01:16]} 21. Nf2 {[%clk 0:01:04]}  Bc6 {[%clk 0:01:16]} 22. Nde4 {[%clk 0:01:04]}  Nd5 {[%clk 0:01:13]} 23. c4 {[%clk 0:01:01]}  Nb6 {[%clk 0:01:11]} 24. Bf1 {[%clk 0:00:51]}  Ba4 {[%clk 0:01:02]} 25. Rc1 {[%clk 0:00:36]}  Rd7 {[%clk 0:00:51]} 26. Ka2 {[%clk 0:00:34]}  Rhd8 {[%clk 0:00:51]} 27. b3 {[%clk 0:00:34]}  Bc6 {[%clk 0:00:52]} 28. Rcd1 {[%clk 0:00:33]}  f5 {[%clk 0:00:49]} 29. Nc3 {[%clk 0:00:31]}  Rd2+ {[%clk 0:00:48]} 30. Kb1 {[%clk 0:00:18]}  Rxf2 {[%clk 0:00:48]} 0-1


[Site "https://www.chess.com"]

[Event "Titled Tuesday Blitz May 2 Late 2023"]
[White "Mgeladze, Tamaz"]
[Black "Tomaszewski, Kacper"]
[WhiteFideId "13601202"]
[BlackFideId "1127373"]
[WhiteElo "2288"]
[BlackElo "2211"]
[Result "1-0"]
[Round "02"]
[TimeControl "180+2"]
[Date "2023.05.02"]
[WhiteClock "0:00:38"]
[BlackClock "0:00:13"]

1. c4 {[%clk 0:03:00]}  Nf6 {[%clk 0:02:58]} 2. Nc3 {[%clk 0:03:01]}  g6 {[%clk 0:02:57]} 3. g3 {[%clk 0:03:01]}  Bg7 {[%clk 0:02:56]} 4. Bg2 {[%clk 0:03:01]}  O-O {[%clk 0:02:57]} 5. Nf3 {[%clk 0:03:02]}  c5 {[%clk 0:02:56]} 6. O-O {[%clk 0:03:02]}  d5 {[%clk 0:02:56]} 7. d3 {[%clk 0:03:03]}  d4 {[%clk 0:02:43]} 8. Na4 {[%clk 0:03:03]}  Nbd7 {[%clk 0:02:36]} 9. e3 {[%clk 0:03:01]}  dxe3 {[%clk 0:02:35]} 10. Bxe3 {[%clk 0:03:02]}  Qc7 {[%clk 0:02:33]} 11. Nc3 {[%clk 0:03:00]}  a6 {[%clk 0:02:24]} 12. Re1 {[%clk 0:02:57]}  Rb8 {[%clk 0:02:22]} 13. Bf4 {[%clk 0:02:55]}  e5 {[%clk 0:02:21]} 14. Nxe5 {[%clk 0:02:55]}  Nh5 {[%clk 0:02:14]} 15. Nxd7 {[%clk 0:02:51]}  Nxf4 {[%clk 0:02:14]} 16. Nxf8 {[%clk 0:02:51]}  Nxg2 {[%clk 0:02:00]} 17. Nd5 {[%clk 0:02:51]}  Qd6 {[%clk 0:01:43]} 18. Kxg2 {[%clk 0:02:34]}  Bxf8 {[%clk 0:01:33]} 19. Qf3 {[%clk 0:02:33]}  Be6 {[%clk 0:01:24]} 20. Re2 {[%clk 0:02:22]}  Bg7 {[%clk 0:01:20]} 21. Rae1 {[%clk 0:02:21]}  b5 {[%clk 0:01:18]} 22. b3 {[%clk 0:02:19]}  Rd8 {[%clk 0:01:12]} 23. h3 {[%clk 0:02:11]}  h5 {[%clk 0:01:09]} 24. Rxe6 {[%clk 0:01:23]}  fxe6 {[%clk 0:01:07]} 25. Nf6+ {[%clk 0:01:23]}  Kh8 {[%clk 0:01:03]} 26. Ne4 {[%clk 0:01:19]}  Qxd3 {[%clk 0:00:45]} 27. Qxd3 {[%clk 0:01:20]}  Rxd3 {[%clk 0:00:45]} 28. Nxc5 {[%clk 0:01:21]}  Rd2 {[%clk 0:00:45]} 29. Nxe6 {[%clk 0:01:17]}  Rxa2 {[%clk 0:00:40]} 30. Rc1 {[%clk 0:01:00]}  Bh6 {[%clk 0:00:32]} 31. Nf4 {[%clk 0:00:53]}  Bxf4 {[%clk 0:00:29]} 32. gxf4 {[%clk 0:00:53]}  bxc4 {[%clk 0:00:22]} 33. bxc4 {[%clk 0:00:54]}  Rd2 {[%clk 0:00:19]} 34. c5 {[%clk 0:00:53]}  Rd7 {[%clk 0:00:19]} 35. c6 {[%clk 0:00:43]}  Rc7 {[%clk 0:00:19]} 36. Kf3 {[%clk 0:00:44]}  Kg7 {[%clk 0:00:18]} 37. Ke4 {[%clk 0:00:44]}  Kf6 {[%clk 0:00:18]} 38. Kd5 {[%clk 0:00:45]}  a5 {[%clk 0:00:17]} 39. Kd6 {[%clk 0:00:45]}  Rc8 {[%clk 0:00:17]} 40. c7 {[%clk 0:00:45]}  a4 {[%clk 0:00:14]} 41. Kd7 {[%clk 0:00:43]}  Rh8 {[%clk 0:00:13]} 42. c8=Q {[%clk 0:00:43]}  Rxc8 {[%clk 0:00:13]} 43. Rxc8 {[%clk 0:00:41]}  Kf5 {[%clk 0:00:13]} 44. Rc4 {[%clk 0:00:38]}  a3 {[%clk 0:00:13]} 45. Ra4 {[%clk 0:00:38]} 1-0


[Site "https://www.chess.com"]

[Event "Titled Tuesday Blitz May 2 Late 2023"]
[White "Yanchenko, Roman"]
[Black "Petrovic, Aleksa"]
[WhiteFideId "4137329"]
[BlackFideId "967629"]
[WhiteElo "2491"]
[BlackElo "2309"]
[Result "1-0"]
[Round "02"]
[TimeControl "180+2"]
[Date "2023.05.02"]
[WhiteClock "0:00:40"]
[BlackClock "0:00:01"]

1. d4 {[%clk 0:02:55]}  d5 {[%clk 0:02:56]} 2. c4 {[%clk 0:02:55]}  c6 {[%clk 0:02:55]} 3. Nc3 {[%clk 0:02:56]}  Nf6 {[%clk 0:02:54]} 4. Bf4 {[%clk 0:02:55]}  dxc4 {[%clk 0:02:41]} 5. a4 {[%clk 0:02:55]}  Bf5 {[%clk 0:02:37]} 6. e3 {[%clk 0:02:54]}  e6 {[%clk 0:02:32]} 7. Bxc4 {[%clk 0:02:54]}  Bb4 {[%clk 0:02:29]} 8. Qb3 {[%clk 0:02:52]}  a5 {[%clk 0:02:27]} 9. Ne2 {[%clk 0:02:51]}  O-O {[%clk 0:02:26]} 10. O-O {[%clk 0:02:51]}  Nbd7 {[%clk 0:02:26]} 11. f3 {[%clk 0:02:47]}  Qb6 {[%clk 0:02:09]} 12. e4 {[%clk 0:02:43]}  e5 {[%clk 0:02:09]} 13. Be3 {[%clk 0:02:39]}  Bg6 {[%clk 0:02:02]} 14. Na2 {[%clk 0:02:39]}  exd4 {[%clk 0:01:50]} 15. Nxd4 {[%clk 0:02:11]}  Bc5 {[%clk 0:01:37]} 16. Rfd1 {[%clk 0:02:10]}  Ne5 {[%clk 0:01:27]} 17. Qxb6 {[%clk 0:02:08]}  Bxb6 {[%clk 0:01:28]} 18. Be2 {[%clk 0:02:07]}  Rad8 {[%clk 0:01:24]} 19. Nc3 {[%clk 0:02:05]}  Ned7 {[%clk 0:01:04]} 20. Kf1 {[%clk 0:01:59]}  Rfe8 {[%clk 0:01:01]} 21. Bf2 {[%clk 0:01:53]}  Nc5 {[%clk 0:00:55]} 22. Nb3 {[%clk 0:01:43]}  Nfd7 {[%clk 0:00:41]} 23. Nxc5 {[%clk 0:01:43]}  Nxc5 {[%clk 0:00:40]} 24. Bc4 {[%clk 0:01:43]}  Kf8 {[%clk 0:00:35]} 25. g4 {[%clk 0:01:39]}  f6 {[%clk 0:00:34]} 26. Rac1 {[%clk 0:01:32]}  Bf7 {[%clk 0:00:25]} 27. Bxf7 {[%clk 0:01:25]}  Rxd1+ {[%clk 0:00:25]} 28. Nxd1 {[%clk 0:01:22]}  Rd8 {[%clk 0:00:17]} 29. Bxc5+ {[%clk 0:00:56]}  Bxc5 {[%clk 0:00:16]} 30. Bb3 {[%clk 0:00:55]}  b6 {[%clk 0:00:13]} 31. Ke2 {[%clk 0:00:54]}  Bb4 {[%clk 0:00:12]} 32. Nc3 {[%clk 0:00:54]}  Ke7 {[%clk 0:00:10]} 33. Rd1 {[%clk 0:00:53]}  Bd6 {[%clk 0:00:10]} 34. h4 {[%clk 0:00:53]}  Rc8 {[%clk 0:00:10]} 35. h5 {[%clk 0:00:53]}  Bf4 {[%clk 0:00:10]} 36. Bc4 {[%clk 0:00:52]}  Rc7 {[%clk 0:00:10]} 37. b3 {[%clk 0:00:51]}  Rc8 {[%clk 0:00:10]} 38. Rd3 {[%clk 0:00:51]}  Rc7 {[%clk 0:00:10]} 39. Nd1 {[%clk 0:00:51]}  b5 {[%clk 0:00:09]} 40. axb5 {[%clk 0:00:44]}  cxb5 {[%clk 0:00:09]} 41. Bxb5 {[%clk 0:00:45]}  Rc2+ {[%clk 0:00:09]} 42. Kf1 {[%clk 0:00:45]}  Rh2 {[%clk 0:00:06]} 43. Bc4 {[%clk 0:00:43]}  Bg3 {[%clk 0:00:04]} 44. Kg1 {[%clk 0:00:41]}  Rc2 {[%clk 0:00:03]} 45. Ne3 {[%clk 0:00:40]}  Rc1+ {[%clk 0:00:03]} 46. Kg2 {[%clk 0:00:40]}  Be5 {[%clk 0:00:03]} 47. Rd1 {[%clk 0:00:39]}  Rxd1 {[%clk 0:00:02]} 48. Nxd1 {[%clk 0:00:39]}  Kd6 {[%clk 0:00:02]} 49. Ne3 {[%clk 0:00:39]}  Kc5 {[%clk 0:00:02]} 50. Bf7 {[%clk 0:00:39]}  Kd4 {[%clk 0:00:01]} 51. Nf5+ {[%clk 0:00:40]}  Kc3 {[%clk 0:00:01]} 52. Nxg7 {[%clk 0:00:40]}  Kb4 {[%clk 0:00:01]} 53. Nf5 {[%clk 0:00:40]} 1-0


[Site "https://www.chess.com"]

[Event "Titled Tuesday Blitz May 2 Late 2023"]
[White "Toktomushev, Teimur"]
[Black "Sun, Rick"]
[WhiteFideId "14176726"]
[BlackFideId "30909481"]
[WhiteElo "2116"]
[BlackElo "2169"]
[Result "0-1"]
[Round "02"]
[TimeControl "180+2"]
[Date "2023.05.02"]
[WhiteClock "0:00:02"]
[BlackClock "0:00:09"]

1. d4 {[%clk 0:03:00]}  d6 {[%clk 0:03:00]} 2. c4 {[%clk 0:02:59]}  Nf6 {[%clk 0:03:00]} 3. Nc3 {[%clk 0:02:59]}  g6 {[%clk 0:03:01]} 4. e4 {[%clk 0:02:58]}  Bg7 {[%clk 0:03:01]} 5. f3 {[%clk 0:02:59]}  O-O {[%clk 0:03:01]} 6. Be3 {[%clk 0:02:59]}  a6 {[%clk 0:03:02]} 7. Qd2 {[%clk 0:02:59]}  Nbd7 {[%clk 0:03:02]} 8. Nge2 {[%clk 0:02:57]}  c5 {[%clk 0:03:03]} 9. h4 {[%clk 0:02:51]}  h5 {[%clk 0:02:28]} 10. O-O-O {[%clk 0:02:48]}  b5 {[%clk 0:02:28]} 11. dxc5 {[%clk 0:02:26]}  dxc5 {[%clk 0:02:14]} 12. e5 {[%clk 0:02:23]}  Nh7 {[%clk 0:01:54]} 13. e6 {[%clk 0:02:16]}  fxe6 {[%clk 0:01:55]} 14. Nf4 {[%clk 0:02:16]}  b4 {[%clk 0:01:17]} 15. Ne4 {[%clk 0:01:59]}  Rxf4 {[%clk 0:00:59]} 16. Bxf4 {[%clk 0:01:55]}  Qa5 {[%clk 0:00:59]} 17. Kb1 {[%clk 0:01:49]}  Nhf8 {[%clk 0:00:49]} 18. g4 {[%clk 0:01:41]}  Nb6 {[%clk 0:00:28]} 19. Bh6 {[%clk 0:00:59]}  Bb7 {[%clk 0:00:18]} 20. Bxg7 {[%clk 0:00:53]}  Kxg7 {[%clk 0:00:19]} 21. gxh5 {[%clk 0:00:52]}  Na4 {[%clk 0:00:13]} 22. hxg6 {[%clk 0:00:37]}  Bxe4+ {[%clk 0:00:13]} 23. fxe4 {[%clk 0:00:37]}  Nc3+ {[%clk 0:00:14]} 24. bxc3 {[%clk 0:00:32]}  bxc3 {[%clk 0:00:15]} 25. Qc2 {[%clk 0:00:30]}  Rb8+ {[%clk 0:00:14]} 26. Ka1 {[%clk 0:00:30]}  Rb2 {[%clk 0:00:12]} 27. Qxb2 {[%clk 0:00:22]}  cxb2+ {[%clk 0:00:12]} 28. Kxb2 {[%clk 0:00:23]}  Qb4+ {[%clk 0:00:12]} 29. Ka1 {[%clk 0:00:10]}  Qc3+ {[%clk 0:00:12]} 30. Kb1 {[%clk 0:00:11]}  Nxg6 {[%clk 0:00:12]} 31. Rg1 {[%clk 0:00:05]}  Kh6 {[%clk 0:00:11]} 32. Be2 {[%clk 0:00:02]}  Ne5 {[%clk 0:00:09]} 33. Rc1 {[%clk 0:00:02]}  Qb4+ {[%clk 0:00:08]} 34. Ka1 {[%clk 0:00:02]}  Qd2 {[%clk 0:00:08]} 35. Rge1 {[%clk 0:00:02]}  Qd4+ {[%clk 0:00:08]} 36. Kb1 {[%clk 0:00:02]}  Qd2 {[%clk 0:00:08]} 37. Ka1 {[%clk 0:00:02]}  Qb4 {[%clk 0:00:08]} 38. Rb1 {[%clk 0:00:02]}  Qc3+ {[%clk 0:00:08]} 39. Rb2 {[%clk 0:00:02]}  Nc6 {[%clk 0:00:09]} 40. Rf1 {[%clk 0:00:02]}  Nd4 {[%clk 0:00:09]} 41. Bd1 {[%clk 0:00:02]}  Qd3 {[%clk 0:00:09]} 42. Rg1 {[%clk 0:00:02]}  Qe3 {[%clk 0:00:09]} 43. Rf1 {[%clk 0:00:01]}  Qc1+ {[%clk 0:00:09]} 44. Rb1 {[%clk 0:00:02]}  Qc3+ {[%clk 0:00:09]} 45. Rb2 {[%clk 0:00:02]}  Qxc4 {[%clk 0:00:10]} 46. Rg1 {[%clk 0:00:02]}  Qc3 {[%clk 0:00:10]} 47. h5 {[%clk 0:00:02]}  Qc1+ {[%clk 0:00:06]} 48. Rb1 {[%clk 0:00:02]}  Qe3 {[%clk 0:00:06]} 49. Rg6+ {[%clk 0:00:01]}  Kh7 {[%clk 0:00:07]} 50. Bb3 {[%clk 0:00:01]}  Qc3+ {[%clk 0:00:07]} 51. Rb2 {[%clk 0:00:02]}  Qc1+ {[%clk 0:00:07]} 52. Rb1 {[%clk 0:00:02]}  Nxb3+ {[%clk 0:00:08]} 53. axb3 {[%clk 0:00:02]}  Qa3# {[%clk 0:00:09]} 0-1


[Site "https://www.chess.com"]